Workbook

Sheet selecteer hier uw barbecue
B1: Deze info is van: Feestzaal Katelijnenhof, Heirweg 172, 8800 Roeselare. Contacteer de zaakvoerder: 0475/618058 - info@katelijnenhof.be - web: www.katelijnenhof.be met foto's en volledige prijslijst.
B3: ="Rekenmodule barbecue. De prijzen van de recepties in deze module gelden voor alle personen waarvan de receptie gevolgd wordt door een maaltijd. Geldig tot " & DAY(matrixen!B1) & " - " & MONTH(matrixen!B1) & " - " & YEAR(matrixen!B1) -> Rekenmodule barbecue. De prijzen van de recepties in deze module gelden voor alle personen waarvan de receptie gevolgd wordt door een maaltijd. Geldig tot 23 - 2 - 2018
F5: kinderen | H5: kinderen | J5: kinderen
D6: =IF(TODAY()>AA11,"Deze module is niet meer geldig.","") ->  | F6: 0 t.e.m. 2 j. 11 maand | H6: 3 j. t.e.m. 5 j. 11 maand | J6: 6 j, t.e.m. 11 jr. 11 maand
B7: Totaal per volwassene: | D7: =IF(TODAY()>AA11,1/0,SUM(D10:D982)) -> 30.8 | F7: 0,00 | H7: =D7/3 -> 10.26666667 | J7: =D7/2 -> 15.4
F8: U kan ook voor de kinderen een kindermenu nemen ( zie een andere rekenmodule)
B10: MAAK STEEDS UW KEUZE in de gele vakken: (scroll naar beneden om meer gegevens in te vullen) Hierboven kunt u uw prijs volgen. | I10: U vindt verder een overzicht van uw selectie
B11: (klik op de gele balk, vervolgens op het pijltje rechts en scroll ev. naar beneden) | D11: prijs pp | F11: Beknopte info | H11: Gedetailleerde info | AA11: =matrixen!B1 -> 43154
B13: Maak in dit vak uw keuze voor het aperitief | D13: =VLOOKUP(B13,matrixen!B11:I19,8,FALSE) -> 0 | F13: =HLOOKUP($B$13,matrixen!$K$14:$S$18,2,FALSE) -> 0 | H13: =HLOOKUP($B$13,matrixen!$T$14:$AB$28,2,FALSE) -> 0 | AA13: =matrixen!B11 -> Maak in dit vak uw keuze voor het aperitief
B14: Maak in dit vak uw keuze voor het aperitief | F14: =HLOOKUP($B$13,matrixen!$K$14:$S$18,3,FALSE) -> 0 | H14: =HLOOKUP($B$13,matrixen!$T$14:$AB$28,3,FALSE) -> 0 | AA14: =matrixen!B12 -> 1 aperitief per persoon
F15: =HLOOKUP($B$13,matrixen!$K$14:$S$18,4,FALSE) -> 0 | H15: =HLOOKUP($B$13,matrixen!$T$14:$AB$28,4,FALSE) -> 0 | AA15: =matrixen!B13 -> 2 aperitieven per persoon
B16: Indien een genodigde een extra aperitief bestelt of een aperitief wenst die niet in de prijs begrepen is dan: | F16: =HLOOKUP($B$13,matrixen!$K$14:$S$19,5,FALSE) -> 0 | H16: =HLOOKUP($B$13,matrixen!$T$14:$AB$28,5,FALSE) -> 0 | AA16: =matrixen!B14 -> Receptie F
B17: De gast die een extra aperitief bestelt betaalt deze zelf | F17: De gast die een extra aperitief bestelt betaalt deze zelf | H17: =HLOOKUP($B$13,matrixen!$T$14:$AB$28,6,FALSE) -> 0 | AA17: =matrixen!B15 -> Receptie E
B18: De gast die een extra aperitief bestelt betaalt deze zelf | F18: Alle extra aperitief komt op de algemene rekening. | H18: =HLOOKUP($B$13,matrixen!$T$14:$AB$28,7,FALSE) -> 0 | AA18: =matrixen!B16 -> Receptie D
H19: =HLOOKUP($B$13,matrixen!$T$14:$AB$28,8,FALSE) -> 0 | AA19: =matrixen!B17 -> Receptie C
H20: =HLOOKUP($B$13,matrixen!$T$14:$AB$28,9,FALSE) -> 0 | AA20: =matrixen!B18 -> Receptie B
H21: =HLOOKUP($B$13,matrixen!$T$14:$AB$28,10,FALSE) -> 0 | AA21: =matrixen!B19 -> Receptie A
H22: =HLOOKUP($B$13,matrixen!$T$14:$AB$28,11,FALSE) -> 0
B23: Let op: indien slecht weer (vanaf 5 Beaufort of bij hevige neerslag) kunnen wij beslissen om het vlees | H23: =HLOOKUP($B$13,matrixen!$T$14:$AB$28,12,FALSE) -> 0 | AA23: =matrixen!B23 -> Schuimwijn van het huis (reeds inbegrepen)
B24: te bakken in de keuken binnen. We doen er echter alles aan om de barbecue buiten te laten doorgaan. | H24: =HLOOKUP($B$13,matrixen!$T$14:$AB$28,13,FALSE) -> 0 | AA24: =matrixen!B24 -> Cava
H25: =HLOOKUP($B$13,matrixen!$T$14:$AB$28,14,FALSE) -> 0 | AA25: =matrixen!B25 -> Champagne
H26: =HLOOKUP($B$13,matrixen!$T$14:$AB$28,15,FALSE) -> 0 | AA26: =matrixen!B26 -> 0
B28: Stel zelf uw barbecue samen!
B29: In de barbecues zijn steeds groenten voorzien, koude aardappelen en/of aardappel in de pel. Ook de sausjes zijn inbegrepen. | AA29: =matrixen!B44 -> Maak hier uw keuze voor extra hapjes bij het aperitief
B30: Afhankelijk van de soort ingrediënten die u kiest, verandert de prijs van de barbecue. De volwassenen verkrijgen steeds 5 verschillende soorten. De kinderen 3. | AA30: =matrixen!B45 -> Nootjes, chips en zoutkoekjes zoveel u wenst, per pers.
AA31: =matrixen!B46 -> Rauwe groenten (wortel, bloemkool, cocktailsaus) prijs per persoon:
B32: Kies hier eerst uw aardappelbereiding | AA32: =matrixen!B47 -> Warme toostjes per stuk
B33: Aardappel in de pel | D33: =VLOOKUP(B33,matrixen!B100:G103,6,FALSE) -> inbegrepen | AA33: =matrixen!B48 -> Koude toostjes per stuk
B34: Aardappel in de pel | AA34: =matrixen!B49 -> aperitiefglaasjes per stuk
B35: Selecteer hier de samenstelling van uw barbecue. Indien u bij onderstaande lijst blijft, kost de barbecue: | D35: =matrixen!B133 -> 28 | F35: ="Selecteert u één of meer van onderstaande specialiteiten, is er een supplement van "&matrixen!E133&" euro pp t.o.v. de basisprijs" -> Selecteert u één of meer van onderstaande specialiteiten, is er een supplement van 4 euro pp t.o.v. de basisprijs | Q35: =IF(AND(F36<>"",F36<> matrixen!E$112),1,0) -> 0 | R35: =IF(Q35+Q36+Q37+Q38+Q39>0,matrixen!E133,0) -> 0 | AA35: =matrixen!B50 -> Oesters per stuk warm of koud
A36: 1 | B36: Kies uit deze vleesspecialiteiten | C36: =IF(AND(B36 <>"",B36<> matrixen!B$112),1,0) -> 0 | E36: 1 | F36: supp. visgerechten / rund | J36: U mag tegelijk ook | Q36: =IF(AND(F37<>"",F37<> matrixen!E$112),1,0) -> 0 | AA36: =matrixen!B51 -> wachtbordje met vispasteitje
A37: 2 | B37: Kies uit deze vleesspecialiteiten | C37: =IF(AND(B37 <>"",B37<> matrixen!B$112),1,0) -> 0 | E37: 2 | F37: supp. visgerechten / rund | J37: uit de vorige categorie kiezen | Q37: =IF(AND(F38<>"",F38<> matrixen!E$112),1,0) -> 0 | AA37: =matrixen!B52 -> wachtbordje van reuzentoost met gerookte zalm
A38: 3 | B38: Kies uit deze vleesspecialiteiten | C38: =IF(AND(B38 <>"",B38<> matrixen!B$112),1,0) -> 0 | E38: 3 | F38: supp. visgerechten / rund | Q38: =IF(AND(F39<>"",F39<> matrixen!E$112),1,0) -> 0 | AA38: =matrixen!B53 -> wachtbordje van lauw slaatje met gerookte zalm en scampi's
A39: 4 | B39: Kies uit deze vleesspecialiteiten | C39: =IF(AND(B39 <>"",B39<> matrixen!B$112),1,0) -> 0 | D39: =R35 -> 0 | E39: 4 | F39: supp. visgerechten / rund | Q39: =IF(AND(F40<>"",F40<> matrixen!E$112),1,0) -> 0 | AA39: =matrixen!B54 -> 0
A40: 5 | B40: Kies uit deze vleesspecialiteiten | C40: =IF(AND(B40 <>"",B40<> matrixen!B$112),1,0) -> 0 | E40: 5 | F40: supp. visgerechten / rund | AA40: =matrixen!B55 -> 0 | AE40: =IF($D$39>0,AF40,"") ->  | AF40: =matrixen!E121 -> U mag 2 warme sausen kiezen als u ook vis of rund kiest!
B41: Kies uit deze vleesspecialiteiten | F41: supp. visgerechten / rund | AF41: =matrixen!E122 -> bearnaise
B42: =IF(C36+C37+C38+C39+C40+Q35+Q36+Q37+Q38+Q39+G4<>5,"Gelieve in totaal 5 vlees- en/of visspecialtieiten te selecteren","U koos nu 5 gerechten. Indien gewenst kunt u nog steeds wijzigen") -> Gelieve in totaal 5 vlees- en/of visspecialtieiten te selecteren | F42: =IF(D39>0,AF40,"") ->  | AA42: =matrixen!B100 -> Koude aardappelen | AF42: =matrixen!E123 -> romige portosaus
AA43: =matrixen!B101 -> Aardappel in de pel | AF43: =matrixen!E124 -> pepersaus
B44: Selecteer hier uw formule van de dranken tijdens de barbecue. | AA44: =matrixen!B102 -> 1/2 koude aardappelen en 1/2 aardappel in de pel | AF44: =matrixen!E125 -> mosterd en look,
B45: Huiswijn, bieren en frisdranken als forfait | D45: =VLOOKUP(B45,matrixen!B139:M141,12,FALSE) -> 2.8 | AA45: =matrixen!B103 -> frietjes (supplement) | AF45: =matrixen!E126 -> champignonroomsaus
B46: Huiswijn, bieren en frisdranken als forfait | AF46: =matrixen!E127 -> kreeftsaus met groentebrunoise
F47: extra info | AA47: =matrixen!B112 -> Kies uit deze vleesspecialiteiten | AF47: =matrixen!E128 -> kreeftsaus zonder groenten
B48: Selecteer hier uw dessert. | AA48: =matrixen!B113 -> - Worst | AF48: =matrixen!E129 -> saffraansaus
B49: Nog geen dessert geselecteerd | D49: =VLOOKUP(B49,dessert,8,FALSE) -> 0 | F49: =VLOOKUP($B$49,dessert,10,FALSE) -> 0 | AA49: =matrixen!B114 -> - Kippenboutjes | AF49: =matrixen!E130 -> bieslooksaus
B50: Nog geen dessert geselecteerd | F50: =VLOOKUP($B$49,dessert,11,FALSE) -> 0 | AA50: =matrixen!B115 -> - Gemarineerde kotelet
F51: =VLOOKUP($B$49,dessert,12,FALSE) -> 0 | AA51: =matrixen!B116 -> - Lamskoteletjes
F52: =VLOOKUP($B$49,dessert,13,FALSE) -> 0 | AA52: =matrixen!B117 -> - Varkensbrochet
F53: =VLOOKUP($B$49,dessert,14,FALSE) -> 0 | AA53: =matrixen!B118 -> - Kasselrib
F54: =VLOOKUP($B$49,dessert,15,FALSE) -> 0 | AA54: =matrixen!B119 -> - Ribbetjes
B55: Selecteer hier uw koffie | AA55: =matrixen!B120 -> - Worst
B56: Nog geen keuze gemaakt | D56: =VLOOKUP(B56,matrixen!B169:I172,8,FALSE) -> 0 | AA56: =matrixen!B121 -> - Kippenboutjes
B57: Nog geen keuze gemaakt
B58: Elke gast die na de maaltijd een drankje bestelt rekent direct af aan de bar | D58: =VLOOKUP($B$58,matrixen!$A$176:$P$178,15,FALSE) -> 0 | E58: =VLOOKUP($B$58,matrixen!$A$176:$P$178,16,FALSE) -> direct afrekenen | F58: Vegetariërs: | G58: nee | H58: Speciale dieten: | I58: nee | J58: Halal bereidingen: | K58: nee | AB58: =matrixen!E112 -> supp. visgerechten / rund
B59: Elke gast die na de maaltijd een drankje bestelt rekent direct af aan de bar | AB59: =matrixen!E113 -> - Brochette met gepelde scampi's
F60: Feest met discobar: | G60: nee | H60: Allergenen: | I60: nee | J60: =IF($I$60="ja",matrixen!A182,"") ->  | AB60: =matrixen!E114 -> - Stukje zalm en papillotte
B61: Om uw selecties te bewaren, gelieve ze op te slaan op uw harde schijf. (opslaan als) | G61: =IF(G60="ja",matrixen!A186,"") ->  | J61: =IF($I$60="ja",matrixen!A183,"") ->  | AB61: =matrixen!E115 -> - Stukje victoriabaarsfilet met fijne kruiden en papillotte
J62: =IF($I$60="ja",matrixen!A184,"") ->  | AB62: =matrixen!E116 -> - Forel met fijne groenten en papillotte
B63: Om een aanvraag naar ons te versturen stuur een mail naar info@katelijnenhof met in bijlage dit bestand vanaf uw harde schijf. | AB63: =matrixen!E117 -> - Witte zalm in een jasje van ham
E64: Eventuele datum van het feest: | H64: Overzicht van uw selectie: | AB64: =matrixen!E118 -> - Côte à l’os
F65: Het exacte aantal personen en de tafelschikking dient ons meegedeeld te worden de vrijdag van het weekend voordien. | H65: =IF(B13=matrixen!B11,"",B13) ->  | L65: =D13 -> 0 | AA65: =matrixen!B139 -> Huiswijn, bieren en frisdranken als forfait | AB65: =matrixen!E119 -> - Steak
E66: geraamd aantal volwassenen: | H66: =IF(L66>0,B88,"") ->  | J66: =IF(L66>0,"geldt alleen bij recepties!!!","") ->  | L66: =D88 -> 0 | AA66: =matrixen!B140 -> Domaine Joel Delauny Touraine en/of Château Reynier, Bordeaux superieur, bieren en frisdranken
E67: geraamd aantal kinderen 6 j. t.e.m. 11 jr. 11 maand: | H67: =IF(L67>0,B94,"") ->  | L67: =D94 -> 0 | AA67: =matrixen!B141 -> 0
E68: geraamd aantal kinderen 3 j. t.e.m. 5 j. 11 maand: | H68: =IF(L68>0,B95,"") ->  | L68: =D95 -> 0
E69: geraamd aantal kinderen 0 t.e.m. 2 j. 11 maand: | H69: =IF(L69>0,B96,"") ->  | L69: =D96 -> 0 | AA69: =matrixen!B142 -> Nog geen dessert geselecteerd
H70: =IF(L70>0,B97,"") ->  | L70: =D97 -> 0 | AA70: =matrixen!B143 -> Halve gegarneerde maan
E71: uur van aankomst: | H71: =IF(L71>0,B98,"") ->  | L71: =D98 -> 0 | AA71: =matrixen!B144 -> Waaier van nagerechten (gebak, ijs, chocomousse, fruit)
E72: aan tafel om: | H72: =IF(L72>0,B33,"") -> Aardappel in de pel | L72: =D33 -> inbegrepen | AA72: =matrixen!B145 -> IJstaart ambachtelijk, speciale vorm, smaak naar keuze
H73: groenten en sausen | L73: inbegrepen | AA73: =matrixen!B146 -> Trio van witte- melk- en fondantchocolade op amandelbiscuit
E74: Uw naam: | H74: =IF(B36=matrixen!$B$112,"",B36) ->  | J74: =IF(F36=matrixen!$E$112,"",F36) ->  | L74: =F43 -> 0 | AA74: =matrixen!B147 -> Stel zelf uw mini dessertbordje samen met 4 dessertjes
E75: Adres: | H75: =IF(B37=matrixen!$B$112,"",B37) ->  | J75: =IF(F37=matrixen!$E$112,"",F37) ->  | L75: =F44 -> 0 | AA75: =matrixen!B148 -> Coupe met vers fruit en verse slagroom.
E76: Stad: | H76: =IF(B38=matrixen!$B$112,"",B38) ->  | J76: =IF(F38=matrixen!$E$112,"",F38) ->  | AA76: =matrixen!B149 -> Aardbeiensoepje met sinaasappel in seizoen
E77: Tel nr: | H77: =IF(B39=matrixen!$B$112,"",B39) ->  | J77: =IF(F39=matrixen!$E$112,"",F39) ->  | AA77: =matrixen!B150 -> Coupe met aardbeien en verse slagroom.
E78: reden feest: | H78: =IF(B40=matrixen!$B$112,"",B40) ->  | J78: =IF(F40=matrixen!$E$112,"",F40) ->  | AA78: =matrixen!B151 -> Dame blanche
E79: Opmerking: | H79: Basisprijs BBQ: | I79: =D35 -> 28 | K79: =IF(L79>0,"supplement vis:","") ->  | L79: =D39 -> 0 | AA79: =matrixen!B152 -> - frambozentaart
H80: =B45 -> Huiswijn, bieren en frisdranken als forfait | L80: =D45 -> 2.8 | AA80: =matrixen!B153 -> - progres
E81: geraamde totalen uit andere rekenbladen: | H81: =IF(L81>0,B49,"") ->  | L81: =D49 -> 0 | AA81: =matrixen!B154 -> - fruitgebakje
C82: (vb: kindermenus) | H82: =IF(L82>0,B56,"") ->  | L82: =D56 -> 0 | AA82: =matrixen!B155 -> - biscuit crème fraiche met coulis
E83: Geschat factuurtotaal: | F83: =Reservatievoorstel!I13 -> 0 | H83: Keuze drank na de maaltijd: | L83: =E58 -> direct afrekenen | AA83: =matrixen!B156 -> - warme appeltaart met een bolletje ijs
F84: (Gebaseerd op de door u ingebrachte gegevens) | AA84: =matrixen!B157 -> - zwarte woudtaart
E85: korting bij contante betaling: | F85: =F83*0.02 -> 0 | AA85: =matrixen!B158 -> Sabayon met rood fruit
B86: Mogelijke supplementen bij de recepties | E86: saldo: | F86: =F83-F85 -> 0 | H86: Gaat u akkoord met de algemene verkoopsvoorwaarden? | K86: ja | AA86: =matrixen!B159 -> Verse ananas met ijs en suikerspin
AA87: =matrixen!B160 -> Basis dessertbuffet met:
B88: Schuimwijn van het huis (reeds inbegrepen) | D88: =VLOOKUP(B88,matrixen!B23:I26,8,FALSE) -> 0 | J88: Voorkeur tafelschikking: | K88: geen voorkeur | AA88: =matrixen!B161 -> Uitgebreid dessertbuffet met:
B89: Schuimwijn van het huis (reeds inbegrepen) | K89: geen voorkeur | AA89: =matrixen!B162 -> Uitgebreid en luxueus dessertbuffet met:
J90: Wijze van betaling: | K90: Betaling op de dag zelf (cash of bancontact), u bekomt 2% korting op het totaal | AA90: =matrixen!B163 -> 0
B91: Eventueel: extra hapjes bij het aperitief. | AA91: =matrixen!B164 -> 0 | AB91: =matrixen!B169 -> Nog geen keuze gemaakt
J92: Wenst u een factuur? | K92: nee | AB92: =matrixen!B170 -> Koffie 3 X bediend
E93: =SUMIF(B94:B98,"warme toostjes per stuk",D94:D98) -> 0 | F93: =IF($E$93>0,matrixen!B58,"") ->  | G93: =SUMIF(B94:B98,"koude toostjes per stuk",D94:D98) -> 0 | H93: =IF($G$93>0,matrixen!E58,"") ->  | I93: =SUMIF(B94:B98,"aperitiefglaasjes per stuk",D94:D98) -> 0 | J93: =IF($I$93>0,matrixen!H58,"") ->  | K93: =IF(K92="ja","Gelieve uw facturatiegegevens bij opmerkingen in te vullen.","") ->  | AB93: =matrixen!B171 -> Koffie 3 X bediend met koekjes
B94: Maak hier uw keuze voor extra hapjes bij het aperitief | D94: =VLOOKUP(B94,matrixen!$B$44:$I$55,8,FALSE) -> 0 | F94: =IF($E$93>0,matrixen!B59,"") ->  | H94: =IF($G$93>0,matrixen!E59,"") ->  | J94: =IF($I$93>0,matrixen!H59,"") ->  | AB94: =matrixen!B172 -> Koffie 3 X bediend met pralines
B95: Maak hier uw keuze voor extra hapjes bij het aperitief | D95: =VLOOKUP(B95,matrixen!$B$44:$I$55,8,FALSE) -> 0 | F95: =IF($E$93>0,matrixen!B60,"") ->  | H95: =IF($G$93>0,matrixen!E60,"") ->  | J95: =IF($I$93>0,matrixen!H60,"") ->  | AA95: =matrixen!B173 -> 0
B96: Maak hier uw keuze voor extra hapjes bij het aperitief | D96: =VLOOKUP(B96,matrixen!$B$44:$I$55,8,FALSE) -> 0 | F96: =IF($E$93>0,matrixen!B61,"") ->  | H96: =IF($G$93>0,matrixen!E61,"") ->  | J96: =IF($I$93>0,matrixen!H61,"") ->  | AA96: =matrixen!A176 -> Alle drank na de maaltijd komt op één rekening en wordt door de organisator van het feest betaald
B97: Maak hier uw keuze voor extra hapjes bij het aperitief | D97: =VLOOKUP(B97,matrixen!$B$44:$I$55,8,FALSE) -> 0 | F97: =IF($E$93>0,matrixen!B62,"") ->  | H97: =IF($G$93>0,matrixen!E62,"") ->  | J97: =IF($I$93>0,matrixen!H62,"") ->  | AA97: =matrixen!A177 -> Elke gast die na de maaltijd een drankje bestelt rekent direct af aan de bar
B98: Maak hier uw keuze voor extra hapjes bij het aperitief | D98: =VLOOKUP(B98,matrixen!$B$44:$I$55,8,FALSE) -> 0 | F98: =IF($E$93>0,matrixen!B63,"") ->  | H98: =IF($G$93>0,matrixen!E63,"") ->  | J98: =IF($I$93>0,matrixen!H63,"") ->  | AA98: =matrixen!A178 -> Forfait voor drank naar believen (alle bieren en frisdranken van de drankkaart in de zaal) na een maaltijd. pp:
B99: Maak hier uw keuze voor extra hapjes bij het aperitief | F99: =IF($E$93>0,matrixen!B64,"") ->  | H99: =IF($G$93>0,matrixen!E64,"") -> 
AA100: =matrixen!A204 -> ja
AA101: =matrixen!A205 -> nee
AA103: geen voorkeur
AA104: zoveel mogelijk ronde tafels van 6 à 8 personen
AA105: liever lange tafels ev. In U-vorm of H-vorm.
AA107: =matrixen!A380 -> Betaling op de dag zelf (cash of bancontact), u bekomt 2% korting op het totaal
AA108: =matrixen!A381 -> Storting op BE 48 4631 1391 2127 of op BE 14 3770 7615 9383, min. 7 dagen voor het feest, 2% korting
AA109: =matrixen!A382 -> Betaling na het feest. Gelieve 40 % voorschot te storten op BE48 4631 1391 2127 of op BE14 3770 7615 9383 . Geen korting.

Sheet matrixen (hidden)
B1: 2018-02-23 | L1: lam, zwanen enz.. . Met foto suppl. | P1: 15
A2: Deze bladen kopiëren en waarden plakken en alle prijzen van de rekenmodules worden aangepast | L2: Foto op de taart: suppl. € | O2: 0.7 | P2: per stuk taart en € | R2: 10 | S2: per foto
B4: Minimaal verbruik feest | E4: 950
B11: Maak in dit vak uw keuze voor het aperitief | M11: Aanpassingen in de omschrijving van de receptie doen IN het kader en alles blijft ok. Allemaal in 1 keer behalve rec & bb borrels | V11: Omschrijving kan in het kader.
B12: 1 aperitief per persoon | I12: 6 | M12: Het tabblad recepties en babyb bij aanpassingen niet meenemen wnat daar staan extra rfecepties op. | V12: Recepties hier worden overal aangepast.
B13: 2 aperitieven per persoon | I13: 10 | M13: Dat moet dus apart worden aangepast.
B14: Receptie F | I14: 15.5 | K14: Maak in dit vak uw keuze voor het aperitief | L14: 1 aperitief per persoon | M14: 2 aperitieven per persoon | N14: Receptie F | O14: Receptie E | P14: Receptie D | Q14: Receptie C | R14: Receptie B | S14: Receptie A | T14: Maak in dit vak uw keuze voor het aperitief | U14: 1 aperitief per persoon | V14: 2 aperitieven per persoon | W14: Receptie F | X14: Receptie E | Y14: Receptie D | Z14: Receptie C | AA14: Receptie B | AB14: Receptie A
B15: Receptie E | I15: 12.6 | L15: 1 per persoon, | M15: 2 per persoon, | N15: Zeer uitgebreide receptie | O15: Uitgebreide receptie | P15: Basis receptie. | Q15: Zeer uitgebreide receptie | R15: Uitgebreide receptie | S15: Basis receptie. | U15: vrije keuze | V15: vrije keuze | W15: dranken inbegrepen gedurende 2 uur | X15: dranken inbegrepen gedurende 2 uur | Y15: dranken inbegrepen gedurende 2 uur | Z15: dranken inbegrepen gedurende 2 uur | AA15: dranken inbegrepen gedurende 2 uur | AB15: dranken inbegrepen gedurende 2 uur
B16: Receptie D | I16: 11.1 | L16: eventueel tweede wordt | M16: eventueel derde wordt | N16: met 4 aperitiefglaasjes, | O16: met 4 aperitiefglaasjes | P16: Dranken 2 uur inbegrepen. | Q16: met 3 koude toastjes en 3 warme | R16: met 3 koude toastjes en 3 warme | S16: Dranken 2 uur inbegrepen. | U16: Porto rood | V16: Porto rood | W16: met Schuimwijn van het huis en alle frisdranken en bieren naar believen, | X16: met Schuimwijn van het huis en alle frisdranken en bieren naar believen, | Y16: met Schuimwijn van het huis en alle frisdranken en bieren naar believen, | Z16: met Schuimwijn van het huis en alle frisdranken en bieren naar believen, | AA16: met Schuimwijn van het huis en alle frisdranken en bieren naar believen, | AB16: met Schuimwijn van het huis en alle frisdranken en bieren naar believen,
B17: Receptie C | I17: 15.5 | L17: direct afgerekend of | M17: direct afgerekend of | N17: een soepje, 2 warme hapjes | O17: en drank gedurende 2 uur. | Q17: hapjes, kleine versnaperingen | R17: hapjes, kleine versnaperingen | U17: Martini | V17: Martini | W17: Assortiment van 4 aperitiefglaasjes (samenstelling kan verschillen), een soepje en 2 warme hapjes | X17: Assortiment van 4 aperitiefglaasjes: (samenstelling kan verschillen) | Y17: kaasjes, salami, tapenades, | Z17: kaasjes, salami, olijven, nootjes en chips. | AA17: kaasjes, salami, olijven, nootjes en chips. | AB17: tapenades
B18: Receptie B | I18: 12.6 | L18: komt op 1 rekening | M18: komt op 1 rekening | N18: en drank gedurende 2 uur. | Q18: en drank gedurende 2 uur. | U18: Kir | V18: Kir | W18: * eendenmousse met rode bessen en koornbloemblaadjes | X18: * eendenmousse met rode bessen en koornbloemblaadjes | Y18: olijven en nootjes en chips | Z18: lepeltje gevuld met vismousse | AA18: lepeltje gevuld met vismousse | AB18: nootjes en chips
B19: Receptie A | I19: 10 | U19: Frisdrank | V19: Frisdrank | W19: * luzerne met gerookte zalm, eitjes van vliegende vis in wasabi | X19: * luzerne met gerookte zalm, eitjes van vliegende vis in wasabi | Z19: lepeltje gevuld met vleesmousse | AA19: lepeltje gevuld met vleesmousse
U20: Bieren | V20: Bieren | W20: * mousse van krab met rode bietscheutjes | X20: * mousse van krab met rode bietscheutjes | Z20: 3 warme hapjes pp | AA20: 3 warme hapjes pp
U21: nootjes en chips inbegrepen | V21: nootjes en chips inbegrepen | W21: * preischeuten met garnalen en mini tomaat | X21: * preischeuten met garnalen en mini tomaat | Z21: * kippenbilletje * toastcupje * garnaal in filodeeg | AA21: * kippenbilletje * toastcupje * garnaal in filodeeg
U22: TIP: | V22: TIP: | W22: * tomatensoepje en 2 warme hapjes, standaard een garnaal in filodeeg en een kippenvleugeltje | Z22: 3 koude toostjes pp
B23: Schuimwijn van het huis (reeds inbegrepen) | I23: 0 | U23: Een receptie naar believen | V23: Receptie A is dezelfde prijs. | W23: TIP: Er is veel meer keuze dan de standaard hapjes | X23: TIP: Er is veel meer keuze dan de standaard hapjes | Z23: * gerookte zalm * vissalade * grijze garnalen
B24: Cava | I24: 3.25 | U24: kost evenveel als | V24: Maar daar is de drank naar believen gedurende | W24: die hierboven vermeld worden. Via deze tool kunt u dit | X24: die hierboven vermeld worden. Via deze tool kunt u dit | Z24: Tip: Bovenstaande hapjes kunnen ook gewijzigd worden. | AA24: Tip: Bovenstaande hapjes kunnen ook gewijzigd worden.
B25: Champagne | I25: 7 | U25: 2 aperitieven per persoon. | V25: maximaal 2 uur. En er zijn wat tapenades. | W25: niet aanpassen maar wel als u bij ons langskomt. | X25: niet aanpassen maar wel als u bij ons langskomt. | Z25: Niet via deze tool maar wel bij reservatie | AA25: Niet via deze tool maar wel bij reservatie
U26: Selecteer daartoe receptie A! | V26: We komen rond met schuimwijn en | W26: De keuzemogelijkheden staan gedetailleerd | X26: De keuzemogelijkheden staan gedetailleerd | Z26: De keuzemogelijkheden staan gedetailleerd | AA26: De keuzemogelijkheden staan gedetailleerd
B27: Schuimwijn brut | I27: 0 | V27: fruitsap maar alle bovenstaande dranken | W27: beschreven in het pdf document "prijslijst" pagina 9. | X27: beschreven in het pdf document "prijslijst" pagina 9. | Z27: beschreven in het pdf document "prijslijst" pagina 9. | AA27: beschreven in het pdf document "prijslijst" pagina 9.
V28: kunnen op vraag ook bekomen worden. | W28: U krijgt hier wel een prijsindicatie maar weet dat er meer moglijkheden zijn. | X28: U krijgt hier wel een prijsindicatie maar weet dat er meer moglijkheden zijn. | Z28: U krijgt hier wel een prijsindicatie maar weet dat er meer moglijkheden zijn. | AA28: U krijgt hier wel een prijsindicatie maar weet dat er meer moglijkheden zijn.
T29: Menu's BBQ
B30: Dessertbuffet zonder maaltijd: | I30: 16.5
B31: Koffie 3 X bediend | I31: 2.5 | S31: 1 | T31: Dit menu kunt u samenstellen en wijzigen via de tool Barbecue's
S32: 2 | T32: Prijs per volwassene: | Z32: 40.15
S33: 3
B34: 1 aperitief per persoon, vrije keuze | I34: 6 | S34: 4 | T34: 1 aperitief per persoon | V34: vrije keuze | AA34: 6
B35: Pineau des charentes wit | I35: 6 | S35: 5 | T35: Nootjes, chips en zoutkoekjes zoveel u wenst, per pers.
B36: Maison (basis safari) | I36: 6 | S36: 6
B37: Kir royale | I37: 6 | S37: 7
B38: Sherry dry | I38: 6 | S38: 8 | T38: - Worst | AA38: 28
B39: Porto | I39: 6 | S39: 9 | T39: - Kippenboutjes
B40: Martini (wit/rood) | I40: 6 | S40: 10 | T40: - Gemarineerde kotelet
B41: Kir | I41: 6 | S41: 11 | T41: - Lamskoteletjes
B42: Schuimwijn | I42: 6 | S42: 12 | T42: - Varkensbrochet
S43: 13 | T43: Koude aardappelen
B44: Maak hier uw keuze voor extra hapjes bij het aperitief | S44: 14 | T44: Groenten en sausen
B45: Nootjes, chips en zoutkoekjes zoveel u wenst, per pers. | I45: gratis | S45: 15
B46: Rauwe groenten (wortel, bloemkool, cocktailsaus) prijs per persoon: | I46: 1 | S46: 16 | T46: Huiswijn, bieren en frisdranken als forfait | AA46: 2.8
B47: Warme toostjes per stuk | I47: 1 | S47: 17
B48: Koude toostjes per stuk | I48: 1.3 | S48: 18 | T48: Koffie 3 X bediend met koekjes | AA48: 3.35
B49: aperitiefglaasjes per stuk | I49: 2
B50: Oesters per stuk warm of koud | I50: 2.3 | S50: 1 | T50: Dit menu kunt u samenstellen en wijzigen via de tool Barbecue's
B51: wachtbordje met vispasteitje | I51: 4 | S51: 2 | T51: Prijs per volwassene: | Z51: 44.15
B52: wachtbordje van reuzentoost met gerookte zalm | I52: 4 | S52: 3
B53: wachtbordje van lauw slaatje met gerookte zalm en scampi's | I53: 6 | S53: 4 | T53: 2 aperitieven per persoon | W53: vrije keuze | AA53: 10
S54: 5 | T54: Nootjes, chips en zoutkoekjes zoveel u wenst, per pers.
S55: 6
S56: 7
S57: 8 | T57: - Worst | AA57: 28
B58: Keuze warme toostjes | E58: Keuze koude toostjes | H58: Keuze aperoglaasjes | S58: 9 | T58: - Kippenboutjes
B59: (bij reservatie te bepalen) | E59: (bij reservatie te bepalen) | H59: (bij reservatie te bepalen) | S59: 10 | T59: - Gemarineerde kotelet
B60: kippenbilletjes | E60: toost garnaal koud | H60: aperoglaasje eendenmousse | S60: 11 | T60: - Lamskoteletjes
B61: toostcupje | E61: toost gerookte zalm koud | H61: aperoglaasje gerookte zalm | S61: 12 | T61: - Varkensbrochet
B62: garnaal in filo | E62: toost krabsla koud | H62: aperoglaasje mousse van krab | S62: 13 | T62: Koude aardappelen
B63: mini croque | E63: toost eendenpastei koud | H63: aperoglaasje tomaat / garnaal | S63: 14 | T63: Groenten en sausen
B64: scampi enz…. | H64: en nog veel mogelijkheden | S64: 15
S65: 16 | T65: Huiswijn, bieren en frisdranken als forfait | AA65: 2.8
S66: 17
S67: 18 | T67: Koffie 3 X bediend met koekjes | AA67: 3.35
S69: 1 | T69: Dit menu kunt u samenstellen en wijzigen via de tool Barbecue's
D70: Maak hier uw keuze | S70: 2 | T70: Prijs per volwassene: | Z70: 46.75
B71: Belegd met: | D71: parmaham | G71: € | H71: 4.5 | S71: 3
D72: grijze garnalen | G72: € | H72: 4.2 | S72: 4 | T72: Receptie B | AA72: 12.6
D73: gerookte zalm | G73: € | H73: 2.5 | S73: 5 | T73: dranken inbegrepen gedurende 2 uur en diverse warme en koude hapjes
D74: zalmsalade | G74: € | H74: 2.5 | S74: 6 | T74: of Receptie E met aperitiefglaasjes
D75: gerookte ham | G75: € | H75: 2.5 | S75: 7
D76: vissla | G76: € | H76: 2.5 | S76: 8 | T76: - Worst | AA76: 28
D77: kaas | G77: € | H77: 2.5 | S77: 9 | T77: - Kippenboutjes
D78: gekookte ham | G78: € | H78: 2.5 | S78: 10 | T78: - Gemarineerde kotelet
D79: américain préparé | G79: € | H79: 2.5 | S79: 11 | T79: - Lamskoteletjes
D80: krabsla | G80: € | H80: 2.5 | S80: 12 | T80: - Varkensbrochet
D81: kipsla | G81: € | H81: 2.5 | S81: 13 | T81: Koude aardappelen
S82: 14 | T82: Groenten en sausen
S83: 15
C84: uitgebreide fomule met toostjes in menuvorm (max 3uur) | S84: 16 | T84: Huiswijn, bieren en frisdranken als forfait | AA84: 2.8
C85: “3 koude voorgerechtjes” | S85: 17
C86: koud hapje met krabsla | S86: 18 | T86: Koffie 3 X bediend met koekjes | AA86: 3.35
C87: koud hapje met gerookte zalm
C88: koud hapje met grijze garnalen
C89: “soepje” | S89: 1 | T89: Dit menu kunt u samenstellen en wijzigen via de tool Barbecue's
C90: 1 mini soepje tomatenroom of vissoepje | S90: 2 | T90: Prijs per volwassene: | Z90: 44.15
C91: “3 warme gerechtjes” | S91: 3
C92: kippenboutje | S92: 4 | T92: 1 aperitief per persoon | V92: vrije keuze | AA92: 6
C93: mini loempia | S93: 5 | T93: Nootjes, chips en zoutkoekjes zoveel u wenst, per pers.
C94: mini croque monsieur | S94: 6
C95: “2 dessertjes” | S95: 7
C96: mini-brochetje met druifje, ananas en meloenbolletje | S96: 8 | T96: - Brochette met gepelde scampi's | AA96: 4
C97: mini confituurtaartje | S97: 9 | T97: - Stukje zalm en papillotte
S98: 10 | T98: - Worst | AA98: 28
S99: 11 | T99: - Lamskoteletjes
B100: Koude aardappelen | G100: inbegrepen | S100: 12 | T100: - Varkensbrochet
B101: Aardappel in de pel | G101: inbegrepen | S101: 13 | T101: Koude aardappelen
B102: 1/2 koude aardappelen en 1/2 aardappel in de pel | G102: inbegrepen | S102: 14 | T102: Groenten en sausen
B103: frietjes (supplement) | G103: 1 | S103: 15
S104: 16 | T104: Huiswijn, bieren en frisdranken als forfait | AA104: 2.8
S105: 17
S106: 18 | T106: Koffie 3 X bediend met koekjes | AA106: 3.35
S108: 1 | T108: Dit menu kunt u samenstellen en wijzigen via de tool Barbecue's
S109: 2 | T109: Prijs per volwassene: | Z109: 48.15
S110: 3
S111: 4 | T111: 2 aperitieven per persoon | W111: vrije keuze | AA111: 10
A112: 1 | B112: Kies uit deze vleesspecialiteiten | D112: 1 | E112: supp. visgerechten / rund | S112: 5 | T112: Nootjes, chips en zoutkoekjes zoveel u wenst, per pers.
A113: 2 | B113: - Worst | D113: 2 | E113: - Brochette met gepelde scampi's | S113: 6
A114: 3 | B114: - Kippenboutjes | D114: 3 | E114: - Stukje zalm en papillotte | S114: 7
A115: 4 | B115: - Gemarineerde kotelet | D115: 4 | E115: - Stukje victoriabaarsfilet met fijne kruiden en papillotte | S115: 8 | T115: - Brochette met gepelde scampi's | AA115: 4
A116: 5 | B116: - Lamskoteletjes | D116: 5 | E116: - Forel met fijne groenten en papillotte | S116: 9 | T116: - Stukje zalm en papillotte
A117: 6 | B117: - Varkensbrochet | D117: 6 | E117: - Witte zalm in een jasje van ham | S117: 10 | T117: - Worst | AA117: 28
A118: 7 | B118: - Kasselrib | D118: 7 | E118: - Côte à l’os | S118: 11 | T118: - Lamskoteletjes
A119: 8 | B119: - Ribbetjes | D119: 8 | E119: - Steak | S119: 12 | T119: - Varkensbrochet
A120: 9 | B120: - Worst | S120: 13 | T120: Koude aardappelen
A121: 10 | B121: - Kippenboutjes | E121: U mag 2 warme sausen kiezen als u ook vis of rund kiest! | S121: 14 | T121: Groenten en sausen
E122: bearnaise | S122: 15
E123: romige portosaus | S123: 16 | T123: Huiswijn, bieren en frisdranken als forfait | AA123: 2.8
E124: pepersaus | S124: 17
E125: mosterd en look, | S125: 18 | T125: Koffie 3 X bediend met koekjes | AA125: 3.35
E126: champignonroomsaus
E127: kreeftsaus met groentebrunoise | S127: 1 | T127: Dit menu kunt u samenstellen en wijzigen via de tool Barbecue's
E128: kreeftsaus zonder groenten | S128: 2 | T128: Prijs per volwassene: | Z128: 50.75
E129: saffraansaus | S129: 3
E130: bieslooksaus | S130: 4 | T130: Receptie B | AA130: 12.6
S131: 5 | T131: dranken inbegrepen gedurende 2 uur en diverse warme en koude hapjes
B132: basisprijs | E132: sup. Tov basisprijs | S132: 6 | T132: of Receptie E met aperitiefglaasjes
B133: 28 | E133: 4 | S133: 7
B134: Basisprijs BBQ | E134: sup vis | S134: 8 | T134: - Brochette met gepelde scampi's | AA134: 4
S135: 9 | T135: - Stukje zalm en papillotte
S136: 10 | T136: - Worst | AA136: 28
B137: Bio wijnen, bieren en frisdranken als forfait | M137: 0 | S137: 11 | T137: - Lamskoteletjes
S138: 12 | T138: - Varkensbrochet
B139: Huiswijn, bieren en frisdranken als forfait | M139: 2.8 | S139: 13 | T139: Koude aardappelen
B140: Domaine Joel Delauny Touraine en/of Château Reynier, Bordeaux superieur, bieren en frisdranken | M140: 7 | S140: 14 | T140: Groenten en sausen
S141: 15
B142: Nog geen dessert geselecteerd | S142: 16 | T142: Huiswijn, bieren en frisdranken als forfait | AA142: 2.8
B143: Halve gegarneerde maan | I143: 8.8 | K143: Een echte smaakbom van chocolade, rode vruchten en basilicum | S143: 17
B144: Waaier van nagerechten (gebak, ijs, chocomousse, fruit) | I144: 6 | K144: Zeer royaal bord met gebak, ijs, chocomousse en fruit | S144: 18 | T144: Koffie 3 X bediend met koekjes | AA144: 3.35
B145: IJstaart ambachtelijk, speciale vorm, smaak naar keuze | I145: 5.3 | K145: Ijstaart met foto: 15 euro per foto (min personen). Speciale garnituren mits meerprijs mogelijk.
B146: Trio van witte- melk- en fondantchocolade op amandelbiscuit | I146: 5.9
B147: Stel zelf uw mini dessertbordje samen met 4 dessertjes | I147: 3.9 | K147: Roomijs en/of Bruine chocolademousse en/of Pasteis de nata en/of | L147: Chocoladebavarois en/of Miserable en/of glaasje fruitsla met perensorbet en/of | M147: Witte chocolademousse en/of Roomsoes met warme chocoladesaus en/of Tiramisu en/of | N147: Javanais en/of Gebak peer-caramel en/of mini fruittaartje. | S147: 1 | T147: Dit menu kunt u samenstellen en wijzigen via de tool Barbecue's
B148: Coupe met vers fruit en verse slagroom. | I148: 3.9 | K148: Vanilleijs, vers fruit en verse slagroom | S148: 2 | T148: Prijs per volwassene: | Z148: 41.15
B149: Aardbeiensoepje met sinaasappel in seizoen | I149: 3.9 | K149: Sinaasappelsap met grand marnier en daarin vers gesneden aardbeien (alleen in seizoen) | S149: 3
B150: Coupe met aardbeien en verse slagroom. | I150: 3.9 | K150: Vanilleijs, verse aardbeien en verse slagroom | S150: 4 | T150: 1 aperitief per persoon | V150: vrije keuze | AA150: 6
B151: Dame blanche | I151: 3.9 | K151: Vanilleijs, verse slagroom,warme chocoladesaus. | S151: 5 | T151: Nootjes, chips en zoutkoekjes zoveel u wenst, per pers.
B152: - frambozentaart | I152: 5.75 | K152: De lekkerste van alle gebakjes. | S152: 6
B153: - progres | I153: 5.75 | K153: Een klassieker. | S153: 7
B154: - fruitgebakje | I154: 3.9 | K154: Klein maar fijn gebakje | S154: 8 | T154: - Worst | AA154: 28
B155: - biscuit crème fraiche met coulis | I155: 3.9 | K155: Vrij groot stuk met slagroom. Foto op de taart: suppl. € 0,7 per stuk taart en € 10 per foto | S155: 9 | T155: - Kippenboutjes
B156: - warme appeltaart met een bolletje ijs | I156: 3.9 | K156: Hier heb je zowel gebak als vanilleijs. | S156: 10 | T156: - Gemarineerde kotelet
B157: - zwarte woudtaart | I157: 5.75 | K157: Biscuit met cacaopoeder in een tasje. | S157: 11 | T157: - Lamskoteletjes
B158: Sabayon met rood fruit | I158: 3.9 | K158: Sabayon, fruit en ijs | S158: 12 | T158: - Varkensbrochet
B159: Verse ananas met ijs en suikerspin | I159: 3.9 | S159: 13 | T159: frietjes (supplement) | AA159: 1
B160: Basis dessertbuffet met: | I160: 10 | K160: vers fruit, verschillende soorten sorbet, chocolademousse, roomijs | L160: variatie van miserable, javanais, pasteis de nata, roomsoes, speculoostaart, | M160: De samenstelling van het buffet kan verschillen, naargelang de grootte van de groep | P160: Belangrijk: De prijs van dit dessertbuffet geldt alleen indien voorafgegaan door een maaltijd!! | S160: 14 | T160: Groenten en sausen
B161: Uitgebreid dessertbuffet met: | I161: 12 | K161: vers fruit, verschillende soorten sorbet, chocolademousse, roomijs | L161: variatie van miserable, javanais, pasteis de nata, roomsoes, speculoostaart, | M161: De samenstelling van het buffet kan verschillen, naargelang de grootte van de groep | N161: assortiment van mini-bavarois (framboos-passie-zwarte woud-pistache-chocolade praliné) | P161: Belangrijk: De prijs van dit dessertbuffet geldt alleen indien voorafgegaan door een maaltijd!! | S161: 15
B162: Uitgebreid en luxueus dessertbuffet met: | I162: 14 | K162: vers fruit, verschillende soorten sorbet, chocolademousse, roomijs | L162: variatie van miserable, javanais, pasteis de nata, roomsoes, speculoostaart, | M162: De samenstelling van het buffet kan verschillen, naargelang de grootte van de groep | N162: assortiment van mini-bavarois (framboos-passie-zwarte woud-pistache-chocolade praliné) | O162: dessertglaasjes (framboos-amandel - trio chocolade - mango-caramel - chocolade praliné) | P162: Belangrijk: De prijs van dit dessertbuffet geldt alleen indien voorafgegaan door een maaltijd!! | S162: 16 | T162: Huiswijn, bieren en frisdranken als forfait | AA162: 2.8
S163: 17
S164: 18 | T164: Koffie 3 X bediend met koekjes | AA164: 3.35
S166: 1 | T166: Dit menu kunt u samenstellen en wijzigen via de tool Barbecue's
S167: 2 | T167: Prijs per volwassene: | Z167: 45.15
S168: 3
B169: Nog geen keuze gemaakt | S169: 4 | T169: 2 aperitieven per persoon | W169: vrije keuze | AA169: 10
B170: Koffie 3 X bediend | H170: € | I170: 2.5 | S170: 5 | T170: Nootjes, chips en zoutkoekjes zoveel u wenst, per pers.
B171: Koffie 3 X bediend met koekjes | H171: € | I171: 3.35 | S171: 6
B172: Koffie 3 X bediend met pralines | H172: € | I172: 3.9 | S172: 7
S173: 8 | T173: - Worst | AA173: 28
S174: 9 | T174: - Kippenboutjes
S175: 10 | T175: - Gemarineerde kotelet
A176: Alle drank na de maaltijd komt op één rekening en wordt door de organisator van het feest betaald | P176: één rekening | S176: 11 | T176: - Lamskoteletjes
A177: Elke gast die na de maaltijd een drankje bestelt rekent direct af aan de bar | P177: direct afrekenen | S177: 12 | T177: - Varkensbrochet
A178: Forfait voor drank naar believen (alle bieren en frisdranken van de drankkaart in de zaal) na een maaltijd. pp: | O178: 16 | P178: 16 | S178: 13 | T178: frietjes (supplement) | AA178: 1
A179: Indien er geen volwaardige maaltijd wordt genomen, dienen er minstens 4 belegde broodjes genomen te worden en verhoogt het drankforfait tot € 28,00 | S179: 14 | T179: Groenten en sausen
A180: 's middags tot 21 u - 's avonds onbeperkt. Let op! Artikel 8 van de verkoopsvoorwaarden (zie laatste bladzijde) kan hier van toepassing zijn !!!! | S180: 15
S181: 16 | T181: Huiswijn, bieren en frisdranken als forfait | AA181: 2.8
A182: Neem contact op met de zaakvoerder op tel nr 0475/618058 | P182: x | S182: 17
A183: om hier zeker geen misverstanden over te hebben! | S183: 18 | T183: Koffie 3 X bediend met koekjes | AA183: 3.35
S185: 1 | T185: Dit menu kunt u samenstellen en wijzigen via de tool Barbecue's
A186: Verbruik van DJ ten laste van de klant | S186: 2 | T186: Prijs per volwassene: | Z186: 47.75
S187: 3
A188: Voor onze vegetarische klanten: | S188: 4 | T188: Receptie B | AA188: 12.6
S189: 5 | T189: dranken inbegrepen gedurende 2 uur en diverse warme en koude hapjes
A190: - Voor onze vegetarische klanten bereiden wij graag een aparte schotel. | S190: 6 | T190: of Receptie E met aperitiefglaasjes
A191: Wij vragen wel met aandrang om op voorhand te melden als er vegetariërs zijn. | S191: 7
A192: Zij eten mee aan de prijs van de rest van de groep. | S192: 8 | T192: - Worst | AA192: 28
S193: 9 | T193: - Kippenboutjes
S194: 10 | T194: - Gemarineerde kotelet
S195: 11 | T195: - Lamskoteletjes
S196: 12 | T196: - Varkensbrochet
A197: Mensen met een speciaal dieet: | S197: 13 | T197: frietjes (supplement) | AA197: 1
S198: 14 | T198: Groenten en sausen
A199: Wij houden rekening met speciale wensen van mensen die een dieet volgen, | S199: 15
A200: maar alleen indien op voorhand gemeld. | S200: 16 | T200: Huiswijn, bieren en frisdranken als forfait | AA200: 2.8
S201: 17
A202: Halal kan ook, onder toezicht van een moslim bereid. | S202: 18 | T202: Koffie 3 X bediend met koekjes | AA202: 3.35
A204: ja
A205: nee | S205: 1 | T205: Dit menu kunt u samenstellen en wijzigen via de tool Barbecue's
S206: 2 | T206: Prijs per volwassene: | Z206: 45.15
S207: 3
S208: 4 | T208: 1 aperitief per persoon | V208: vrije keuze | AA208: 6
S209: 5 | T209: Nootjes, chips en zoutkoekjes zoveel u wenst, per pers.
S210: 6
S211: 7
S212: 8 | T212: - Brochette met gepelde scampi's | AA212: 4
... 262 more rows

Sheet Algemene verkoopsvoorwaarden
B1: Algemene verkoopsvoorwaarden:
B2: 1) Onze facturen zijn contant te betalen bij levering van de goederen. Bijgevolg zal in geval van laattijdige betaling
B3: van rechtswege en zonder voorafgaande ingebrekestelling een intrest aangerekend worden van 12% per jaar op de
B4: bedragen, verschuldigd acht dagen na de vervaldag van de facturen. Tevens zal bij gebrek aan betaling na
B5: aanmaning bij gewone brief, het verschuldigde bedrag van rechtswege verhoogd worden met een forfaitaire
B6: vergoeding van 12 % met een minimum van € 50 voor bijkomende administratieve kosten, debiteurenbewaking
B7: en commerciële stoornissen. Wij behouden ons het recht voor op elk moment de leveringen te staken. Elke
B8: klacht over de kwaliteit van de geleverde goederen moet uiterlijk 24 uur na de levering worden overgemaakt.
B9: Klachten in verband met facturatie kunnen slechts in aanmerking worden genomen zo zij binnen de acht
B10: dagen na ontvangst van de goederen bij aangetekende brief worden meegedeeld. In geval van betwisting zijn
B11: uitsluitend de rechtbanken van Kortrijk bevoegd. De leveringen geschieden op risico van de bestemmeling. Er
B12: wordt uitdrukkelijk overeengekomen dat de klant door het plaatsen van een bestelling onze algemene
B13: verkoopsvoorwaarden erkent. Elke wijziging hieraan moet voorafgaandelijk in een schriftelijk akkoord worden
B14: vastgelegd.
B16: 2) Annulatie dient schriftelijk en gedateerd te geschieden.
B17: In geval van annulatie minder dan 60 dagen voor de activiteit blijft het voorschot eigendom van het Katelijnenhof.
B18: Voor annulatie minder dan 10 dagen voor de activiteit is de klant in alle gevallen verplicht 35 % van de reservatie-
B19: waarde van de gehele manifestatie te vergoeden.
B20: Bij annulatie minder dan 5 dagen voor de activiteit is de klant in alle gevallen verplicht de reservatie waarde van de
B21: gehele manifestatie te vergoeden.
B23: 3) Iedere levering van dranken, voedingswaren of diensten in de zalen is uitsluitend voorbehouden aan het
B24: Katelijnenhof, tenzij er een andere schriftelijke overeenkomst is.
B26: 4) De klant is eraan gehouden voor iedere dansavond met groot orkest een aanvraag tot toelating in te dienen bij
B27: SABAM, Rijselsestraat 51, 8500 Kortrijk, Tel : 056/210738 en alle kosten voortvloeiend uit deze aanvraag te
B28: dragen. Voor een gewone disc-jockey betalen wij jaarlijks een vaste bijdrage. Het verbruik (drank en voeding)
B29: van de DJ is ten laste van de klant. Gelet op de nieuwe geluidsnormen, van kracht op 01/01/2013, moet de
B30: klant de DJ of elke andere persoon of toestel dat geluid produceert verplichten zich aan deze normen te houden.
B31: De toelating voor onze zaal is – maximaal geluidsniveau > 85 dB(A) LAeq,15min en ≤ 95 dB(A) LAeq,15min.
B32: Dit is ruim voldoende. Alle boetes ten gevolge een overschrijding van deze voorwaarde zijn ten laste van de
B33: klant. Er wordt een professionele houding van elke DJ of geluidstechnicus verwacht.
B35: 5) Alle door de klant meegebrachte materiaal dient door de klant te worden verzekerd en direct na het beëindigen
B36: van de manifestatie te worden verwijderd uit de zaal. Het Katelijnenhof behoudt het recht de leverancier te
B37: aanvaarden en voorschriften te geven om de lokalen ongeschonden te behouden. Het is strikt verboden om
B38: versieringen aan de muren of plafonds te bevestigen met duimspijkers of kleefband ! Bij beschadigingen van
B39: een deel van de muur wordt het geheel als beschadigd beschouwd.
B41: 6) Het gebruik van de zaal is strikt beperkt tot de in deze overeenkomst vastgestelde functie.
B42: Iedere wijziging in de voorheen verklaarde bestemming brengt automatisch het recht tot prijsherziening met zich mee.
B44: 7) Het gebruik van de zaal is gratis van zodra het verbruik hoger ligt dan € | I44: =matrixen!E4 -> 950
B45: ="Indien het verbruik lager ligt dan wordt het factuurbedrag opgetrokken tot € "&I44 -> Indien het verbruik lager ligt dan wordt het factuurbedrag opgetrokken tot € 950
B46: Indien uw feest cash (max € 3000) betaald wordt op de dag zelf dan krijgt u een korting van 2 %
B47: op de gehele factuur. Voor traiteurdienst gelden andere kortingsregels.
B49: 8) Op vrijdag-, zaterdag- en (in geval van een avondfeest) op zondagnacht sluit de zaal,
B50: overeenkomstig het politiereglement, om 03 uur.
B51: Indien de klant dit wenst kan een afwijking bekomen worden op dit reglement mits het betalen van € | L51: =I44/10 -> 95
B52: (btw incl.) per uur. De klant heeft tijd tot 02u30 om te beslissen of hij van deze afwijking wenst gebruik te
B53: maken of niet. Indien de klant akkoord gaat deze toeslag te betalen zal het Katelijnenhof onmiddellijk een
B54: aanvraag doen bij de lokale politie. In het andere geval worden vanaf 02u45 geen dranken meer bediend en
B55: sluiten om 03u00 de deuren. Voor de andere dagen gelden andere tarieven.
B56: Op een zaterdag - en zondagmiddagfeest sluit de zaal om 18u30. Indien u wenst langer te blijven wordt per
B57: begonnen uur eveneens een toeslag van € | F57: =L51 -> 95
B58: (btw incl.) aangerekend.
B59: 9) De klant is verantwoordelijk voor de goede orde in en rond de feestzaal. Schade veroorzaakt door een der
B60: aanwezigen kan verhaald worden op deze persoon maar als deze om gelijk welke reden de schade niet kan
B61: vergoeden (vb: te weinig financiële middelen of de veroorzaker is onbekend) kan deze schade eveneens
B62: ondeelbaar worden verhaald op de klant , zijnde de persoon die het feest heeft besteld. VB: per gebroken tulpje
B63: aan de lusters van de grote zaal wordt 25 euro aangerekend.

Sheet Reservatievoorstel
C1: Reservatievoorstel | K1: Uitsplitsing per BTW tarief. | P1: Totaalprijs per vol: | Q1: =E9 -> 30.8
A2: Naam Klant: | C2: ='selecteer hier uw barbecue'!F74 -> 0 | G2: Katelijnenhof | P2: =IF(Q2>0,"Prijs drankforfait na de maaltijd, volledig aan 21% BTW:","") ->  | Q2: ='selecteer hier uw barbecue'!D58 -> 0
A3: Adres: | C3: ='selecteer hier uw barbecue'!F75 -> 0 | G3: Heirweg 172 | M3: Menu | O3: Dep. B | P3: =IF(Q2>0,"Drank- forfait:","") ->  | Q3: Totaal aan 21% | R3: Dep. A
A4: Stad: | C4: ='selecteer hier uw barbecue'!F76 -> 0 | G4: 8800 Roeselare | K4: aantal | L4: totaal: | M4: deel 12% | N4: deel21%
A5: Tel nr: | C5: ='selecteer hier uw barbecue'!F77 -> 0 | G5: info@katelijnenhof.be | J5: Vol | K5: =D9 -> 0 | L5: =Q1-Q2 -> 30.8 | M5: =ROUND(L5*0.65,2) -> 20.02 | N5: =L5-M5 -> 10.78 | O5: =K5*M5 -> 0 | P5: =Q2 -> 0 | Q5: =N5+P5 -> 10.78 | R5: =K5*Q5 -> 0
A6: ='selecteer hier uw barbecue'!E78 -> reden feest: | C6: ='selecteer hier uw barbecue'!F78 -> 0 | G6: Gsm 0475/618058 | J6: JR 1/2 | K6: =D10 -> 0 | L6: =L5/2 -> 15.4 | M6: =ROUND(L6*0.65,2) -> 10.01 | N6: =L6-M6 -> 5.39 | O6: =K6*M6 -> 0 | P6: =Q2/2 -> 0 | Q6: =N6+P6 -> 5.39 | R6: =K6*Q6 -> 0
A7: Datum activiteit: | C7: ='selecteer hier uw barbecue'!F64 -> 00:00:00 | J7: JR 1/3 | K7: =D11 -> 0 | L7: =L5/3 -> 10.26666667 | M7: =ROUND(L7*0.65,2) -> 6.67 | N7: 3.596666667 | O7: 0 | P7: =Q2/3 -> 0 | Q7: =N7+P7 -> 3.596666667 | R7: 0
A8: Totaal aantal personen: | D8: =D9+D10+D11+D12 -> 0 | E8: prijs: | H8: aankomst om: | I8: ='selecteer hier uw barbecue'!F71 -> 0 | J8: JR gratis | K8: =D12 -> 0 | L8: =E12 -> 0,00 | M8: =L8*0.65 -> 0 | N8: =L8*0.35 -> 0 | O8: 0 | Q8: =N8+P8 -> 0 | R8: 0
C9: volwassenen: | D9: ='selecteer hier uw barbecue'!F66 -> 0 | E9: ='selecteer hier uw barbecue'!D7 -> 30.8 | H9: aan tafel om: | I9: ='selecteer hier uw barbecue'!F72 -> 0 | L9: Voorschot reeds betaald: | P9: =IF(Q9>0,"Huur zaal/muziekinstallatie: ","") ->  | Q9: =I12+D13 -> 0
C10: JR 1/2 (6 t.e.m. 11) : | D10: ='selecteer hier uw barbecue'!F67 -> 0 | E10: ='selecteer hier uw barbecue'!J7 -> 15.4 | H10: raming totaal 1: | I10: =D9*E9+D10*E10+D11*E11+D12*E12+D13 -> 0 | L10: Gestort / betaald op:
C11: JR 1/3 (3 t.e.m. 5) : | D11: ='selecteer hier uw barbecue'!F68 -> 0 | E11: ='selecteer hier uw barbecue'!H7 -> 10.26666667 | H11: ander rekenblad: | I11: ='selecteer hier uw barbecue'!F81 -> 0 | L11: =IF(M9>0,"Voorschot uitgesplitst:","") ->  | M11: =IF(M9>0," € "&M9*0.65 & " x 12% => Dep. B en € " & M9*0.35 & " x 21% => Dep. A.","") -> 
C12: JR gratis (0 t.e.m. 2) : | D12: ='selecteer hier uw barbecue'!F69 -> 0 | E12: ='selecteer hier uw barbecue'!F7 -> 0,00 | H12: huur zaal: | I12: =IF(D9+D10+D11+D12=0,0,IF((I10+I11)<'Algemene verkoopsvoorwaarden'!I44,'Algemene verkoopsvoorwaarden'!I44-I10-I11,0)) -> 0 | M12: Voorschot wordt gesplitst over: | N12: =IF(M9>0,ROUNDUP((M9+1)/L5,0),0) -> 0 | O12: volwassenen
D13: ='selecteer hier uw barbecue'!I61 -> 0 | H13: raming algemeen totaal: | I13: =I10+I11+I12 -> 0 | J13: Input GKS: | M13: =IF(M9*0.65 >N12*M5,"ONMOGELIJK U bekomt negatieve waarden.","") -> 
H14: raming te betalen indien contante betaling (max € 3000 cash): | I14: ='selecteer hier uw barbecue'!F86 -> 0 | J14: =N12 -> 0 | K14: vol | L14: x | M14: =IFERROR(M5-M9*0.65/N12,"") ->  | N14: 0.12 | O14: =IFERROR(J14*M14,"") ->  | P14: Dep. B | Q14: Verwerking voorschot
D15: Voorkeur tafelschikking: | I15: ='selecteer hier uw barbecue'!K88 -> geen voorkeur | J15: =IFERROR( " Er wordt € " & ROUND(M9*0.65/N12,2) & " minder geboekt bij " & N12 & " personen omdat dit reeds als voorschot werd geboekt.","") -> 
I16: ='selecteer hier uw barbecue'!B17 -> De gast die een extra aperitief bestelt betaalt deze zelf | J16: =N12 -> 0 | K16: vol | L16: x | M16: =IFERROR(Q5-M9*0.35/N12,"") ->  | N16: 0.21 | O16: =IFERROR(J16*M16,"") ->  | P16: Dep. A | Q16: Verwerking voorschot
A17: ='selecteer hier uw barbecue'!H65 ->  | I17: =IF(M9>0," Uw voorschot van € " & M9 & " wordt nog in mindering gebracht","") ->  | J17: =IFERROR( " Er wordt € " & ROUND(M9*0.35/N12,2) & " minder geboekt bij " & N12 & " personen omdat dit reeds als voorschot werd geboekt.","") -> 
A18: ='selecteer hier uw barbecue'!H66 ->  | J18: =K5-J14 -> 0 | K18: =K14 -> vol | L18: x | M18: =M5 -> 20.02 | N18: 0.12 | O18: =J18*M18 -> 0 | P18: Dep. B
A19: ='selecteer hier uw barbecue'!H67 ->  | J19: =K5-J16 -> 0 | K19: =K16 -> vol | L19: x | M19: =Q5 -> 10.78 | N19: 0.21 | O19: 0 | P19: Dep. A
A20: ='selecteer hier uw barbecue'!H68 ->  | J20: =K6 -> 0 | K20: =J6 -> JR 1/2 | L20: x | M20: =M6 -> 10.01 | N20: 0.12 | O20: 0 | P20: Dep. B
A21: ='selecteer hier uw barbecue'!H69 ->  | J21: =K6 -> 0 | K21: =J6 -> JR 1/2 | L21: x | M21: =Q6 -> 5.39 | N21: 0.21 | O21: 0 | P21: Dep. A
A22: ='selecteer hier uw barbecue'!H70 ->  | J22: =K7 -> 0 | K22: =J7 -> JR 1/3 | L22: x | M22: =M7 -> 6.67 | N22: 0.12 | O22: 0 | P22: Dep. B
A23: ='selecteer hier uw barbecue'!H71 ->  | J23: =K7 -> 0 | K23: =J7 -> JR 1/3 | L23: x | M23: =Q7 -> 3.596666667 | N23: 0.21 | O23: 0 | P23: Dep. A
C24: Barbecue met: | J24: =IF(L24>0,"1",0) -> 0 | K24: =IF(L24>0,"x","") ->  | L24: =Q9 -> 0 | M24: =IF(L24>0,"21%","") ->  | N24: =IF(L24>0,"Dep. A","") ->  | O24: =P9 -> 
A25: ='selecteer hier uw barbecue'!H72 -> Aardappel in de pel | K25: Totale boekwaarde: | L25: =SUM(O14:O23)+L24+M9+I11 -> 0 | M25: =IF(SUM(O14:O23)+L24+M9+I11 <>I13," Er is iets fout met de splitsingstabel","") -> 
A26: ='selecteer hier uw barbecue'!H73 -> groenten en sausen | J26: ="De eventuele korting contant van 2 %, in het huidig voorstel is dit € " & ROUND(I13-I14,2) & " is nog niet in bovenstaande splitsing verwerkt." -> De eventuele korting contant van 2 %, in het huidig voorstel is dit € 0 is nog niet in bovenstaande splitsing verwerkt.
A27: ='selecteer hier uw barbecue'!H74 ->  | I27: ='selecteer hier uw barbecue'!J74 -> 
A28: ='selecteer hier uw barbecue'!H75 ->  | I28: ='selecteer hier uw barbecue'!J75 ->  | J28: =IF(J29<>"","Detail van het aperitief:","") -> 
A29: ='selecteer hier uw barbecue'!H76 ->  | I29: ='selecteer hier uw barbecue'!J76 ->  | J29: =A17 -> 
A30: ='selecteer hier uw barbecue'!H77 ->  | I30: ='selecteer hier uw barbecue'!J77 ->  | J30: ='selecteer hier uw barbecue'!H13 -> 0
A31: ='selecteer hier uw barbecue'!H78 ->  | I31: ='selecteer hier uw barbecue'!J78 ->  | J31: ='selecteer hier uw barbecue'!H14 -> 0
A32: ='selecteer hier uw barbecue'!L74 -> 0 | E32: ='selecteer hier uw barbecue'!L75 -> 0 | J32: ='selecteer hier uw barbecue'!H15 -> 0
A33: ='selecteer hier uw barbecue'!H80 -> Huiswijn, bieren en frisdranken als forfait | J33: ='selecteer hier uw barbecue'!H16 -> 0
A34: ='selecteer hier uw barbecue'!H81 ->  | J34: ='selecteer hier uw barbecue'!H17 -> 0
A35: ='selecteer hier uw barbecue'!H82 ->  | J35: ='selecteer hier uw barbecue'!H18 -> 0
A36: ='selecteer hier uw barbecue'!B58 -> Elke gast die na de maaltijd een drankje bestelt rekent direct af aan de bar | J36: ='selecteer hier uw barbecue'!H19 -> 0
A37: ='selecteer hier uw barbecue'!K90 -> Betaling op de dag zelf (cash of bancontact), u bekomt 2% korting op het totaal | J37: ='selecteer hier uw barbecue'!H20 -> 0
J38: ='selecteer hier uw barbecue'!H21 -> 0
A39: Vegetariërs: | B39: ='selecteer hier uw barbecue'!G58 -> nee | D39: Speciale dieten: | E39: ='selecteer hier uw barbecue'!I58 -> nee | H39: Feest met discobar: | I39: ='selecteer hier uw barbecue'!G60 -> nee | J39: ='selecteer hier uw barbecue'!H22 -> 0
A40: Factuur: | B40: ='selecteer hier uw barbecue'!K92 -> nee | D40: Halal bereidingen: | E40: ='selecteer hier uw barbecue'!K58 -> nee | H40: ='selecteer hier uw barbecue'!H60 -> Allergenen: | I40: ='selecteer hier uw barbecue'!I60 -> nee | J40: ='selecteer hier uw barbecue'!H23 -> 0
A41: ="Opmerking: " &'selecteer hier uw barbecue'!F79 -> Opmerking: | J41: ='selecteer hier uw barbecue'!H24 -> 0
J42: ='selecteer hier uw barbecue'!H25 -> 0
J43: ='selecteer hier uw barbecue'!H26 -> 0
J44: =IF(A34<>"","Detail van het dessert:","") -> 
A45: Het juiste aantal EN de gewenste tafelschikking moet ons meegedeeld worden ten laatste op: | I45: =C7-9 -> -9 | J45: ='selecteer hier uw barbecue'!F49 -> 0
A46: Wijzigingen na deze datum van aantal en/of tafelschikking hebben prijsherzieningen tot gevolg! | J46: ='selecteer hier uw barbecue'!F50 -> 0
A47: Dit aantal geldt als minimum voor facturatie. Verdere verkoopsvoorwaarden op een ander werkblad. | J47: ='selecteer hier uw barbecue'!F51 -> 0
A48: Vergeet ze niet te lezen. | H48: Gaat u akkoord met de algemene verkoopsvoorwaarden? | I48: ='selecteer hier uw barbecue'!K86 -> ja | J48: ='selecteer hier uw barbecue'!F52 -> 0
A49: Handtekening der beide partijen voor akkoord: | J49: ='selecteer hier uw barbecue'!F53 -> 0
C50: De klant | H50: Het Katelijnenhof | J50: ='selecteer hier uw barbecue'!F54 -> 0
